Cogmind - Beta 13 @@@ ROGUE MODE // 2024.04.03 @ 12:31:03 Player: engineer Result: Self-destructed Performance ------------- Evolutions (1) 500 Regions Visited (2) 400 Robots Destroyed (17) 85 Value Destroyed (434) 434 Prototype IDs (0) 0 Alien Tech Used (0) 0 Bonus (0) 0 TOTAL SCORE: 1419 Bonus ------- None Cogmind --------- Core Integrity 247/400 Matter 241/300 Energy 100/100 System Corruption 0% Temperature Cool (0) Movement Walking (190) Ox1 Location -9/Materials Parts ------- > --- POWER (1) -------- (None) > --- PROPULSION (3) --- Aluminum Leg > --- UTILITY (3) ------ Small Storage Unit Signal Interpreter Light Armor Plating > --- WEAPON (2) ------- Beam Rifle > --- INVENTORY (8) ---- Hover Unit Hardened Light Armor Plating Grenade Launcher Datajack Peak State ------------ > --- POWER ------------ Light Nuclear Core > --- PROPULSION ------- Aluminum Leg Aluminum Leg > --- UTILITY ---------- Small Storage Unit Signal Interpreter Light Armor Plating > --- WEAPON ----------- Beam Rifle Katana > --- INVENTORY -------- Hover Unit Grenade Launcher Datajack [Rating: 13] Favorites ----------- Power Light Nuclear Core Engine Light Ion Engine Power Core Light Nuclear Core Propulsion Light Treads Treads Light Treads Leg Aluminum Leg Utility Small Storage Unit Storage Small Storage Unit Processor Signal Interpreter Protection Light Armor Plating Weapon Light Assault Rifle Energy Gun Beam Rifle Ballistic Gun Light Assault Rifle Launcher Grenade Launcher Slashing Weapon Katana Special Melee Weapon Datajack Build | -11 -10 -9 ------- Run | Yrd Mat Mat Slots Evolved 2 | . . 2 Power . | . . . Propulsion 1 | . . 1 Utility 1 | . . 1 Weapon . | . . . Parts Attached 23 | 6 9 8 Power 3 | 1 1 1 Engine 1 | 1 . . Core 2 | . 1 1 Reactor . | . . . Propulsion 5 | 2 2 1 Treads 2 | 2 . . Leg 3 | . 2 1 Wheel . | . . . Hover . | . . . Flight . | . . . Utility 7 | 1 4 2 Device . | . . . Storage 3 | 1 2 . Processor 1 | . 1 . Hackware . | . . . Protection 3 | . 1 2 Artifact . | . . . Weapon 8 | 2 2 4 Energy Gun 1 | . . 1 Energy Cannon . | . . . Ballistic Gun 4 | 2 1 1 Ballistic Cannon . | . . . Launcher 1 | . . 1 Special Weapon . | . . . Impact Weapon . | . . . Slashing Weapon 1 | . . 1 Piercing Weapon . | . . . Special Melee Weapon 1 | . 1 . Unidentified Prototypes . | . . . Parts Lost 10 | . 1 9 Power 3 | . 1 2 Propulsion 2 | . . 2 Utility 1 | . . 1 Weapon 4 | . . 4 Highest Loss Streak 6 | . 1 6 To Critical Strikes . | . . . Average Slot Usage (%) 97 | . 99 87 Engine 4 | . 5 . Core 8 | . 8 9 Treads 17 | . 21 . Leg 9 | . 6 24 Storage 18 | . 20 11 Processor 2 | . 1 11 Protection 6 | . 6 10 Energy Gun 1 | . . 7 Ballistic Gun 23 | . 26 5 Slashing Weapon 1 | . . 7 Naked Turns . | . . . Heaviest Build 18 | 10 15 18 Greatest Support 40 | 40 40 30 Greatest Overweight (x) 1 | 1 1 1 Average Overweight (x) . | . . . Largest Inventory Capacity 8 | 8 8 8 Average Capacity 7 | 7 7 8 Most Carried 8 | 3 8 7 Average Carried 5 | 1 5 4 Final Capacity 8 | 8 8 8 Final Carried 8 | 2 8 4 Class Distribution -------------------- 76% | Mutant 23% | Scavenger-Mutant Dominant Class ---------------- Mutant | -10/Materials Scavenger-Mutant | -9/Materials Resources | -11 -10 -9 ----------- Run | Yrd Mat Mat Matter Collected 580 | 178 362 40 Remotely . | . . . Salvage Created 455 | . 300 155 Parts 39 | . 26 13 Haulers Intercepted . | . . . Recyclers Shooed 1 | . 1 . Parts Field Recycled . | . . . Retrieved Matter . | . . . Parts Self-Destructed . | . . . Prevented . | . . . Kills | -11 -10 -9 ------- Run | Yrd Mat Mat Combat Hostiles Destroyed 13 | . 8 5 Melee 1 | . . 1 Guns 9 | . 8 1 AOE 3 | . . 3 Classes Destroyed 7 | . 3 4 Worker 1 | . . 1 Builder 1 | . . 1 Watcher 2 | . 2 . Swarmer 4 | . 3 1 Grunt 7 | . 5 2 Duelist 1 | . . 1 Sentry 1 | . . 1 Best Kill Streak 6 | . 3 6 Combat Bots Only 4 | . 3 4 Max Kills in Single Turn 2 | . 1 2 Gunslinging . | . . . Exploded 1 | . . 1 Melee 1 | . . 1 Uniques/NPCs Destroyed . | . . . Combat | -11 -10 -9 -------- Run | Yrd Mat Mat Hostile Shots Fired 138 | . 63 75 Missed 30 | . 14 16 Damage Taken 1393 | . 563 830 Core 285 | . 132 153 Absorbed by Shields . | . . . Core Remaining (%) 73 | 100 47 . Volleys Fired 64 | . 48 16 Largest 2 | . 2 2 Hottest 56 | . 40 56 Shots Fired 125 | . 96 29 Gun 121 | . 96 25 Cannon . | . . . Launcher 4 | . . 4 Special . | . . . Kinetic 119 | . 96 23 Thermal 2 | . . 2 Explosive 4 | . . 4 Electromagnetic . | . . . Robot Hit Streak 28 | . 8 28 Robot Miss Streak 4 | . 4 1 Penetration Max . | . . . Secondary Targets 1 | . . 1 Max Gunslinging Chain 1 | . . 1 Shots Hit Robots 87 | . 57 30 Core Hits 40 | . 25 15 Critical Kills 1 | . 1 . Critical Parts Destroyed . | . . . Critical Strikes 1 | . 1 . Destroy 1 | . 1 . Melee Attacks 11 | . 6 5 Impact . | . . . Slashing 5 | . . 5 Piercing . | . . . Sneak Attacks 3 | . 3 . Combat Hostiles . | . . . Follow-up Attacks . | . . . Damage Inflicted 1059 | . 439 620 Guns 618 | . 439 179 Cannons . | . . . Explosions 355 | . . 355 Melee 86 | . . 86 Ramming . | . . . Kinetic 618 | . 439 179 Thermal . | . . . Explosive 355 | . . 355 Electromagnetic . | . . . Impact . | . . . Slashing 86 | . . 86 Piercing . | . . . Highest Corruption . | . . . Average Corruption . | . . . Corruption Purged . | . . . Corruption Blocked . | . . . Overload Shots . | . . . Overflow Damage 3 | . . 3 Projectiles . | . . . Explosions 3 | . . 3 Melee . | . . . Knockbacks . | . . . Impact . | . . . Kinetic . | . . . Secondary . | . . . Self-Inflicted Damage 118 | . . 118 Shots 4 | . . 4 Rammed . | . . . Targets Rammed . | . . . Kicked . | . . . Crushed . | . . . Highest Temperature 75 | . 32 75 Average Temperature 21 | . 12 37 Received Heat Transfer 429 | . 243 186 Siege Activations . | . . . Robots Corrupted . | . . . Combat Hostiles . | . . . Parts Fried . | . . . Impact Corruptions . | . . . Robots Melted . | . . . Combat Hostiles . | . . . Parts Melted . | . . . Heat Transferred . | . . . Parts Sabotaged . | . . . Parts Stolen . | . . . Parts Stripped . | . . . Power Chain Reactions . | . . . Alert | -11 -10 -9 ------- Run | Yrd Mat Mat Peak Influence 182 | . 150 182 Initial . | . . . Average 39 | . 28 103 Maximum Alert Level . | . . . Low Security (%) 100 | 100 100 100 Level 1 . | . . . Level 2 . | . . . Level 3 . | . . . Level 4 . | . . . Level 5 . | . . . High Security . | . . . Max Security . | . . . Squads Dispatched 3 | . 2 1 Investigation 3 | . 2 1 Extermination . | . . . Reinforcement . | . . . Assault . | . . . Garrison . | . . . Intercept . | . . . Searches Triggered . | . . . Construction Impeded . | . . . Haulers Reinforced . | . . . Active Scanning Responses . | . . . Cargo Convoy Interrupts . | . . . Stealth | -11 -10 -9 --------- Run | Yrd Mat Mat Distress Signals 2 | . . 2 Communications Jammed . | . . . Distress Signals . | . . . Times Spotted 34 | . 21 13 Peak Tracking Total 6 | . 3 6 Tactical Retreats 4 | . 1 3 Traps | -11 -10 -9 ------- Run | Yrd Mat Mat Traps Triggered 3 | . 2 1 Indirectly . | . . . Trap Hack Attempts . | . . . Triggered . | . . . Disarmed . | . . . Reprogrammed . | . . . Reused . | . . . Traps Extracted . | . . . Installed . | . . . Triggered . | . . . Machines | -11 -10 -9 ---------- Run | Yrd Mat Mat Machines Disabled . | . . . Max in Single Turn . | . . . Machines Repaired . | . . . Machines Dismantled . | . . . Machines Sabotaged . | . . . Overloaded Fab Kills . | . . . Hacking | -11 -10 -9 --------- Run | Yrd Mat Mat Machines Accessed 9 | . 7 2 Terminals 6 | . 4 2 Fabricators . | . . . Repair Stations 1 | . 1 . Recycling Units 2 | . 2 . Scanalyzers . | . . . Garrison Access . | . . . Total Hacks 20 | . 16 4 Successful 8 | . 7 1 Failed 12 | . 9 3 Catastrophic 3 | . 2 1 Database Lockouts . | . . . Manual 5 | . 5 . Terminals 15 | . 11 4 Fabricators . | . . . Repair Stations 3 | . 3 . Recycling Units 2 | . 2 . Scanalyzers . | . . . Garrison Access . | . . . Terminal Hacks 4 | . 3 1 Robot Analysis 1 | . 1 . Alert Level 2 | . 1 1 Dispatch Records 1 | . 1 . Fabricator Hacks . | . . . Repair Station Hacks 2 | . 2 . Scan Component 2 | . 2 . Recycling Unit Hacks 2 | . 2 . Report Inventory 2 | . 2 . Scanalyzer . | . . . Garrison Access Hacks . | . . . Unauthorized Hacks . | . . . Terminals . | . . . Fabricators . | . . . Repair Stations . | . . . Recycling Units . | . . . Scanalyzers . | . . . Garrison Access . | . . . Data Cores Recovered . | . . . Used . | . . . Hacking Detections 7 | . 5 2 Full Trace Events . | . . . Feedback Events . | . . . Feedback Blocked . | . . . Robot Schematics Acquired . | . . . Robots Built . | . . . Authchips . | . . . Time . | . . . Total Robot Build Rating . | . . . Part Schematics Acquired . | . . . Parts Built . | . . . Authchips . | . . . Time . | . . . Total Part Build Rating . | . . . Parts Repaired . | . . . Time . | . . . Parts Recycled . | . . . Recycled Matter . | . . . Retrieved Matter . | . . . Retrieved Components . | . . . Parts Scanalyzed . | . . . Part Schematics Acquired . | . . . Parts Damaged . | . . . Bothacking | -11 -10 -9 ------------ Run | Yrd Mat Mat Used RIF Installer . | . . . Robots Hacked 2 | . 2 . Non-combat 1 | . 1 . Combat 1 | . 1 . Robot Hacks Applied 2 | . 2 . parse_system 2 | . 2 . Relay Couplers Released . | . . . Fabnet Peak Effective % . | . . . Robots Rewired . | . . . Allies Hacked . | . . . Hacks Repelled . | . . . Allies | -11 -10 -9 -------- Run | Yrd Mat Mat Total Allies . | . . . Largest Group . | . . . Highest-Rated Group . | . . . Highest-Rated Ally . | . . . Total Orders . | . . . Ally Attacks . | . . . Total Damage . | . . . Kills . | . . . Allies Corrupted . | . . . Allies Melted . | . . . Intel | -11 -10 -9 ------- Run | Yrd Mat Mat Robot Analysis Total 1 | . 1 . Derelict Logs Recovered . | . . . Drone Launches . | . . . Drone Recoveries . | . . . Exploration | -11 -10 -9 ------------- Run | Yrd Mat Mat Turns Passed 2129 | 98 1694 337 Spaces Moved 1192 | 57 928 207 Core 6 | 6 . . Treads 663 | 51 612 . Legs 523 | . 316 207 Wheels . | . . . Hover . | . . . Flight . | . . . Fastest Speed 50 | 50 120 120 Average Speed 142 | 152 146 120 Slowest Speed 190 | 160 190 190 Overloaded Moves . | . . . Propulsion Burnouts . | . . . Robots Hopped . | . . . Cave-ins Triggered . | . . . Exploration Rate (%) 42 | 5 99 23 Regions Visited 2 Branch Regions . Pre-discovered Areas . | . . . Known Exits Taken 1 | . 1 . Unknown Exits Taken 1 | 1 . . Scrap Searched . | . . . Spaces Dug . | . . . Terrain Destroyed 8 | . . 8 Melee . | . . . Projectile . | . . . AOE 8 | . . 8 Terrain Rammed . | . . . Walls Destroyed . | . . . Machines Disabled . | . . . Actions | -11 -10 -9 --------- Run | Yrd Mat Mat Total 1511 | 66 1182 263 Wait 201 | . 178 23 Move 1190 | 56 927 207 Hop . | . . . Pick Up 16 | 4 9 3 Fast Attach 7 | 4 3 . Attach 12 | 2 2 8 Detach 2 | . 1 1 Swap 4 | . 4 . Drop 4 | . 4 . Fire 64 | . 48 16 Melee 11 | . 6 5 Ram . | . . . Kick . | . . . Crush . | . . . Escape Stasis . | . . . Rewire . | . . . Trap . | . . . Miscellaneous . | . . . Route ------- -11/Scrapyard -10/Materials (discovered 5 exits: *Mat x3 / *Min x2) -9/Materials History --------- Turn | Location | Event 39 | -11/Scrapyard | Discovered new exit (range 14) 99 | -11/Scrapyard | Entered Materials 300 | -10/Materials | Build established: Mutant 531 | -10/Materials | Discovered new exit (range 8) 803 | -10/Materials | Discovered new exit (range 12) 980 | -10/Materials | Discovered new exit (range 16) 1368 | -10/Materials | Core integrity fell below 50% 1427 | -10/Materials | Discovered new exit (range 8) 1654 | -10/Materials | Discovered new exit (range 16) 1654 | -10/Materials | Identified exit to Mines 1792 | -10/Materials | Identified exit to Materials 1793 | -10/Materials | Entered another Materials area 1793 | -9/Materials | Evolved 2 slots: Propulsion x1, Utility x1 1929 | -9/Materials | Lost 6 parts (1p1n1u3w) 1939 | -9/Materials | Build established: Scavenger-Mutant 2130 | -9/Materials | Self-destructed Last Messages --------------- 01919_ R-06 Scavenger collects Lgt. Treads. 01921_ T-07 Excavator is excavating. 01922_ R-06 Scavenger collects Lgt. Treads. 01925_ T-07 Excavator is excavating. 01975_ R-06 Scavenger inserts Lgt. Treads into recycling unit. 01978_ R-06 Scavenger inserts Welding Torch into recycling unit. 01983_ T-07 Excavator is excavating. 02019_ Acquired Hrd. Light Armor Plating. 02030_ K-01 Serf cleans the Terminal. 02042_ Connecting with Terminal... >>Alert(Check) Current Alert Level: Low Security 02058_ Connecting with Terminal... 02087_ Triggered Alarm Trap. 02087_ An alarm sounds. 02087_ ALERT: Alarm triggered, dispatching investigation squad. 02123_ S-10 Pest destroyed. 02125_ Aluminum Leg destroyed. 02127_ Broken Lgt. Nuclear Core destroyed. 02129_ Katana destroyed. Map ----- +----------------------------------------------------+ | ???# ^#?????################### ? ??????? | | #### ####### """ +????? | | """ #????? | | """ #????? | | ############# """ #????? | | ############## # #?????# """ #????? | | ##!# #####???## ## """ #?????# +????? | | | #????# ## """ ####### #????? | | #????# ## """ # # #????? | | #????# ## # #????? | | #????# ## """ + #????? | | # ##????# ## """ # #????? | | # ###????## ## """ # ##### #????? | | # #??????# # ## ###### #????? | | # #####??????# # "Y" ## # # #????? | | ###??????????# # """ ## + #? #????? | | #????????????# # + # #? +????? | | ?????????????# ######## # #??### #????? | | ?????????????### ########?### # #????? ?????? | | ???????????????# # #???# # #??????? ?????? | | ???????????????# / #???# # [#?????????????? | | ??############## # #???# # #?????????????? | | # ##### # !#?????????????? | | # "T"%+* ##+######??????????? | | # # # #??????????? | | ########@ # ""#??????????? | | sss + T"#??????????? | | ################# ""#??????????? | | #???????????????# #??????????? | | ##################???????????????######??????????? | | ?????????????????????????????????????????????????? | | | | | | | | | | | | | | | | | | | | | | | | | | | | | | | | | | | | | | | +----------------------------------------------------+ Best States ------------- Heat Dissipation 28 Energy Generation 14 Energy Capacity 160 Matter Stores 400 Matter Capacity 400 Sight Range 16 Terrain Scan Density 10 Armor Coverage 150 Evasion (%) 55 Recoil Reduction 2 Item Schematics ----------------- None Robot Schematics ------------------ None Fabricated ------------ Nothing Alien Tech Used ----------------- None Achievements -------------- None Challenges ------------ None Game ------ Seed MasterGravityCasing Manual? 0 Play Time 00:22:12 Cumulative 3.0 hours Start 2024.04.03 @ 12:06:04 End 2024.04.03 @ 12:31:03 Sessions 1 Manual Loads 0 Difficulty Rogue Special Mode None Game No. 12 Rogue 12 Adventurer 0 Explorer 0 Win Type - Total 0 Types 0/0/0/0/0/0/0/0/0 Lore% 2 Gallery% 5 Achievement% 6 Wizard Run 0 Options --------- Layout 0 ASCII 0 Keyboard 0 Movement Mouse Keybinds 0 Fullscreen 1 Font 24/Smallcaps Map View 76x50 Zoom Use 0% Tactical HUD 1 Map Filters NONE Filters NONE Steam 1 RUN: e3a77324-e38c-4b3c-b80d-54a6d3c9a0c8